bitfinex/quotes_BTCUSD_20240902
["timestamp","ask_amount","ask_price","bid_price","bid_amount"]
[1725291924689,1.19084,58782.0,58781.0,0.014]
[1725291925407,1.2175152,58782.0,58781.0,0.014]
[1725291925864,1.2175152,58782.0,58781.0,0.01]
[1725291926105,1.2175152,58782.0,58781.0,0.011]
[1725291926333,1.2175152,58782.0,58781.0,0.001]
[1725291927452,0.510429,58774.0,58773.0,0.11398824]
[1725291927946,0.510429,58774.0,58773.0,0.0647]
[1725291929504,0.510429,58774.0,58773.0,0.0727]
[1725291929718,0.53710617,58774.0,58773.0,0.0727]
[1725291929904,0.53710617,58774.0,58773.0,0.0757]
[1725291931246,0.170138,58776.0,58773.0,0.0757]
[1725291931947,0.170135,58777.0,58773.0,0.245845]
[1725291932156,0.170138,58776.0,58773.0,0.234845]
[1725291932390,0.170138,58776.0,58773.0,0.239845]
[1725291932620,0.340244,58782.0,58775.0,0.0652]
[1725291932846,0.170121,58782.0,58778.0,0.170128]
[1725291933112,0.340232,58784.0,58779.0,0.0652]
[1725291933113,0.510355,58783.0,58779.0,0.0652]
[1725291933356,0.170123,58781.0,58779.0,0.0652]
[1725291933833,0.17012,58782.0,58779.0,0.0652]
[1725291934061,0.340232,58784.0,58779.0,0.235328]
[1725291934273,0.17112,58782.0,58779.0,0.0652]
[1725291934496,0.17612,58782.0,58779.0,0.0652]
[1725291935389,0.17512,58782.0,58779.0,0.0652]
[1725291935620,0.17012,58782.0,58779.0,0.0652]
[1725291936259,0.17512,58782.0,58779.0,0.0652]
[1725291936476,0.17512,58782.0,58779.0,0.0702]
[1725291936687,0.17012,58782.0,58779.0,0.0702]
[1725291936919,0.170115,58784.0,58780.0,0.170123]
[1725291937140,0.170115,58784.0,58780.0,0.170124]
[1725291937356,0.170121,58782.0,58779.0,0.0712]
[1725291937568,0.0266751,58791.0,58782.0,0.0755]
[1725291937783,0.0266751,58791.0,58784.0,0.1408]
[1725291938001,0.170107,58787.0,58784.0,0.1408]
[1725291938866,0.170107,58787.0,58784.0,0.310914]
[1725291939097,0.170107,58787.0,58784.0,0.1398]
[1725291939808,0.174107,58787.0,58784.0,0.1398]
[1725291940679,0.170111,58785.0,58784.0,0.1398]
[1725291940941,0.510333,58785.0,58784.0,0.1398]
[1725291941154,0.170125,58780.0,58779.0,0.0491157]
[1725291941398,0.510376,58780.0,58779.0,0.0491157]
[1725291941632,0.170128,58779.0,58778.0,0.0637]
[1725291941853,0.17014,58775.0,58774.0,0.0637]
[1725291942069,0.17014,58775.0,58770.0,0.4769]
[1725291942070,0.510454,58771.0,58770.0,0.5406]
[1725291942284,0.510454,58771.0,58770.0,0.0637]
[1725291942943,0.170151,58771.0,58770.0,0.0637]
[1725291943597,0.170151,58771.0,58770.0,0.0777]
[1725291944062,0.170151,58771.0,58770.0,0.0907]
[1725291944540,0.0662,58798.0,58779.0,0.1474]
[1725291944796,0.10191499,58801.0,58771.0,0.35]
[1725291944797,0.170103,58788.0,58781.0,0.19375266]
[1725291945009,0.340197,58790.0,58783.0,0.170116]
[1725291945010,0.170108,58787.0,58783.0,0.170116]
[1725291945218,0.340197,58790.0,58786.0,0.170107]
[1725291945219,0.170097,58790.0,58786.0,0.170107]
[1725291945433,0.340183,58792.0,58787.0,0.0645]
[1725291945653,0.170102,58789.0,58787.0,0.07236816]
[1725291945873,0.170102,58788.0,58787.0,0.07236816]
[1725291946756,0.170102,58788.0,58787.0,0.07336816]
[1725291947444,0.171102,58788.0,58787.0,0.07336816]
[1725291947653,0.001,58788.0,58787.0,0.07236816]
[1725291949157,0.005,58788.0,58787.0,0.07236816]
[1725291950922,0.005,58788.0,58787.0,0.24247316]
[1725291951425,0.005,58788.0,58787.0,0.24638388]
[1725291952343,0.005,58788.0,58787.0,0.24245759]
[1725291952581,0.005,58788.0,58787.0,0.24636924]
[1725291954192,0.340175,58794.0,58787.0,0.24636924]
[1725291954433,0.170097,58790.0,58787.0,0.24636924]
[1725291954856,0.170094,58791.0,58787.0,0.24636924]
[1725291955598,0.02667205,58796.0,58794.0,0.0809]
[1725291955840,0.02667205,58796.0,58795.0,0.166082]
[1725291956036,0.02667205,58796.0,58795.0,0.0117243]
[1725291956731,0.02667205,58796.0,58794.0,0.0809]
[1725291957394,0.170077,58797.0,58794.0,0.0809]
[1725291957823,0.170075,58798.0,58794.0,0.0809]
[1725291958052,0.170075,58798.0,58795.0,0.008]
[1725291958272,0.170075,58798.0,58796.0,0.0603]
[1725291958933,0.170076,58797.0,58796.0,0.0603]
[1725291960041,0.170076,58797.0,58796.0,0.0623]
[1725291960938,0.170076,58797.0,58796.0,0.0693]
[1725291961362,0.170076,58797.0,58796.0,0.0673]
[1725291961779,0.170076,58797.0,58796.0,0.0703]
[1725291963475,0.510229,58797.0,58796.0,0.01]
[1725291963697,0.170074,58798.0,58796.0,0.01]
[1725291963927,0.170076,58797.0,58796.0,0.01]
[1725291964570,0.170076,58797.0,58796.0,0.007]
[1725291964991,0.170076,58797.0,58796.0,0.009]
[1725291965210,0.170071,58799.0,58796.0,0.179078]
[1725291965418,0.170071,58799.0,58796.0,0.177078]
[1725291965628,0.170071,58799.0,58796.0,0.180078]
[1725291966269,0.340135,58801.0,58796.0,0.01]
[1725291966518,0.340142,58799.0,58796.0,0.01]
[1725291966721,0.340142,58799.0,58796.0,0.007]
[1725291966929,0.170077,58797.0,58794.0,0.250985]
[1725291967355,0.170077,58797.0,58796.0,0.004]
[1725291967800,0.51023,58797.0,58796.0,0.004]
[1725291968017,0.51023,58797.0,58793.0,0.230387]
[1725291968238,0.51023,58797.0,58796.0,0.001]
[1725291968664,0.17008,58796.0,58793.0,0.0603]
[1725291969357,0.17008,58796.0,58777.0,0.02832954]
[1725291969358,0.07642106,58813.0,58795.0,0.33215266]
[1725291969576,0.0622,58814.0,58801.0,0.33215266]
[1725291969807,0.25595266,58814.0,58801.0,0.0606]
[1725291970060,0.0622,58802.0,58793.0,0.0606]
[1725291970247,0.170077,58797.0,58793.0,0.234688]
[1725291970465,0.34013,58801.0,58794.0,0.170084]
[1725291970466,0.340136,58800.0,58794.0,0.170084]
[1725291970695,0.34013,58801.0,58793.0,0.412774]
[1725291970906,0.170072,58799.0,58794.0,0.170084]
[1725291971111,0.170072,58799.0,58795.0,0.170081]
[1725291972797,0.0606,58811.0,58794.0,0.06530148]
[1725291973025,0.170051,58806.0,58802.0,0.170061]
[1725291973455,0.0606,58811.0,58802.0,0.170061]
[1725291973456,0.510139,58808.0,58802.0,0.170061]
[1725291973673,0.340074,58811.0,58803.0,0.065]
[1725291973905,0.170045,58808.0,58803.0,0.235058]
[1725291974189,0.170035,58812.0,58807.0,0.170047]
[1725291974392,0.170037,58811.0,58805.0,0.170052]
[1725291974620,0.170039,58810.0,58805.0,0.170052]
[1725291975089,0.340063,58813.0,58805.0,0.170052]
[1725291975090,0.170042,58809.0,58805.0,0.170052]
[1725291975311,0.170036,58811.0,58804.0,0.34011]
[1725291975514,0.170042,58809.0,58804.0,0.170055]
[1725291976144,0.170045,58808.0,58804.0,0.170055]
[1725291976553,0.17004,58810.0,58805.0,0.170053]
[1725291977004,0.340073,58811.0,58803.0,0.065]
[1725291977213,0.340084,58809.0,58803.0,0.065]
[1725291977440,0.170054,58805.0,58803.0,0.065]
[1725291977703,0.170054,58805.0,58800.0,0.309665]
[1725291977878,0.170054,58805.0,58801.0,0.023]
[1725291978113,0.17006,58803.0,58801.0,0.023]
[1725291978314,0.170057,58804.0,58801.0,0.023]
[1725291979425,0.340113,58804.0,58801.0,0.023]
[1725291979642,0.0753,58809.0,58793.0,0.0662]
[1725291979865,0.510264,58793.0,58792.0,0.04985717]
[1725291980099,0.85044,58793.0,58792.0,0.04985717]
[1725291980337,0.170111,58785.0,58784.0,0.0642]
[1725291980575,0.510376,58780.0,58779.0,0.0642]
[1725291980804,0.17014,58775.0,58772.0,0.85540786]
[1725291981011,0.17014,58775.0,58774.0,0.0793]
[1725291981433,0.170138,58776.0,58774.0,0.1428]
[1725291982067,0.170138,58776.0,58774.0,0.1468]
[1725291982284,0.340271,58777.0,58774.0,0.1468]
[1725291982285,0.51042,58775.0,58774.0,0.1468]
[1725291982501,1.19098,58775.0,58774.0,0.004]
[1725291982942,1.38473266,58775.0,58774.0,0.006]
[1725291983370,1.38473266,58775.0,58774.0,0.002]
[1725291983820,1.38473266,58775.0,58774.0,0.008]
[1725291984042,1.19098,58775.0,58774.0,0.002]
[1725291984263,0.170167,58766.0,58764.0,0.50540786]
[1725291984529,0.340324,58768.0,58764.0,0.50540786]
[1725291984530,0.170169,58765.0,58764.0,0.50540786]
[1725291984746,0.170169,58765.0,58763.0,0.0767]
[1725291984954,0.340324,58768.0,58763.0,0.0767]
[1725291985158,0.170167,58766.0,58763.0,0.0767]
[1725291985643,0.001,58766.0,58764.0,0.014]
[1725291985854,0.001,58766.0,58765.0,0.0034033]
[1725291986074,0.001,58766.0,58765.0,1.03867083]
[1725291986279,0.001,58766.0,58765.0,1.367245]
[1725291986492,0.001,58766.0,58765.0,1.37517098]
[1725291986930,0.001,58766.0,58765.0,1.71550898]
[1725291987352,0.340256,58780.0,58773.0,0.170145]
[1725291987568,0.340244,58782.0,58773.0,0.170145]
[1725291987569,0.170134,58777.0,58773.0,0.170145]
[1725291987794,0.440196,58790.0,58765.0,1.34156398]
[1725291987795,0.340163,58796.0,58778.0,0.0627]
[1725291988018,0.1429,58795.0,58780.0,0.19375266]
[1725291988234,0.1429,58795.0,58781.0,0.17012]
[1725291988235,0.170112,58785.0,58781.0,0.17012]
[1725291988443,0.170112,58785.0,58782.0,0.023]
[1725291988855,0.510323,58787.0,58783.0,0.00786097]
[1725291989062,0.170109,58786.0,58783.0,0.00786097]
[1725291989289,0.170111,58786.0,58783.0,0.00786097]
[1725291989531,0.170112,58785.0,58783.0,0.00786097]
[1725291990589,0.170114,58784.0,58783.0,0.00786097]
[1725291991380,0.170114,58784.0,58783.0,0.01186097]
[1725291991778,0.170114,58784.0,58783.0,0.00786097]
[1725291991926,0.170114,58784.0,58783.0,0.01286097]
[1725291992392,0.510342,58784.0,58783.0,0.01286097]
[1725291992690,0.170114,58784.0,58783.0,0.01486097]
[1725291993410,0.510342,58784.0,58783.0,0.01486097]
[1725291993629,0.340211,58787.0,58783.0,0.01486097]
[1725291993630,0.170109,58786.0,58783.0,0.01486097]
[1725291993854,0.170111,58785.0,58783.0,0.01486097]
[1725291994298,0.170114,58784.0,58783.0,0.01486097]
[1725291994748,0.170114,58784.0,58783.0,0.01286097]
[1725291994968,0.17011,58786.0,58783.0,0.00786097]
[1725291995181,0.170112,58785.0,58783.0,0.00786097]
[1725291995402,0.170112,58785.0,58783.0,0.004]
[1725291995612,0.170112,58785.0,58781.0,0.170122]
[1725291995613,0.170108,58786.0,58784.0,0.00784591]
[1725291996047,0.170108,58786.0,58783.0,0.002]
[1725291996262,0.170108,58786.0,58785.0,0.00784297]
[1725291996473,0.170108,58786.0,58784.0,0.00784591]
[1725291996926,0.170108,58786.0,58783.0,0.002]
[1725291997151,0.170108,58786.0,58785.0,0.00784297]
[1725291997341,0.170108,58786.0,58782.0,0.170119]
[1725291997587,0.170108,58786.0,58785.0,0.00784297]
[1725291997797,0.170108,58786.0,58783.0,0.001]
[1725291998017,0.170108,58786.0,58785.0,0.00784297]
[1725291998225,0.170108,58786.0,58784.0,0.00784591]
[1725291998464,0.170108,58786.0,58785.0,0.00784297]
[1725291998676,0.510325,58786.0,58785.0,0.0117223]
[1725291998888,0.170112,58785.0,58781.0,0.170122]
[1725291999338,0.170115,58784.0,58779.0,0.340253]
[1725291999556,0.170115,58784.0,58780.0,0.170124]
[1725292001275,0.170115,58784.0,58780.0,0.172124]
[1725292001667,0.170115,58784.0,58780.0,0.178124]
[1725292002724,0.170118,58783.0,58780.0,0.008]
[1725292002937,0.1505,58799.0,58782.0,0.1461]
[1725292003161,0.144,58803.0,58790.0,0.19375266]
[1725292003400,0.170079,58796.0,58791.0,0.249192]
[1725292003608,0.170084,58795.0,58791.0,0.249193]
[1725292003818,0.170084,58795.0,58791.0,0.0791]
[1725292004028,0.170084,58795.0,58791.0,0.249191]
[1725292004972,0.340152,58798.0,58792.0,0.170089]
[1725292005177,0.17008,58796.0,58792.0,0.170089]
[1725292005636,0.340121,58803.0,58791.0,0.0841]
[1725292005863,0.46181046,58816.0,58799.0,0.19375266]
[1725292005864,0.170063,58802.0,58799.0,0.19375266]
[1725292006083,0.4729,58814.0,58799.0,0.19375266]
[1725292006084,0.170061,58803.0,58800.0,0.0777]
[1725292006296,0.170061,58803.0,58801.0,0.0633]
[1725292007576,0.170062,58802.0,58801.0,0.0633]
[1725292008001,0.170062,58802.0,58800.0,0.0777]
[1725292008214,0.340105,58806.0,58801.0,0.001]
[1725292008215,0.17006,58803.0,58801.0,0.001]
[1725292008648,0.17006,58803.0,58802.0,0.01162381]
[1725292008854,0.510178,58803.0,58802.0,0.01162381]
[1725292009083,0.170062,58802.0,58801.0,0.001]
[1725292009555,0.17006,58803.0,58801.0,0.001]
[1725292009796,0.17006,58803.0,58799.0,0.170069]
[1725292010003,0.170063,58802.0,58799.0,0.170069]
[1725292010636,0.170063,58802.0,58800.0,0.002]
[1725292010845,0.170063,58802.0,58799.0,0.170069]
[1725292011084,0.170063,58802.0,58797.0,0.403153]
[1725292011302,0.170063,58802.0,58799.0,0.001]
[1725292011512,0.170063,58802.0,58797.0,0.233075]
[1725292011513,0.170067,58801.0,58797.0,0.233075]
[1725292011720,0.170067,58801.0,58799.0,0.002]
[1725292012140,0.170067,58801.0,58797.0,0.233075]
[1725292012386,0.170067,58801.0,58797.0,0.235075]
[1725292012836,0.850367,58798.0,58797.0,0.002]
[1725292013056,1.269514,58798.0,58797.0,0.002]
[1725292013265,1.675661,58798.0,58797.0,0.002]
[1725292013721,0.510342,58784.0,58783.0,0.50540786]
[1725292013921,0.510342,58784.0,58783.0,0.55469008]
[1725292014129,0.17012,58782.0,58779.0,0.1]
[1725292014565,0.340257,58779.0,58777.0,0.0781]
[1725292014768,0.170146,58773.0,58772.0,0.0761]
[1725292015025,0.510438,58773.0,58772.0,0.0761]
[1725292016027,0.170146,58773.0,58772.0,0.0761]
[1725292016693,0.17014,58775.0,58772.0,0.0761]
[1725292017110,0.36695536,58776.0,58772.0,0.0761]
[1725292017333,0.170143,58774.0,58772.0,0.0761]
[1725292017715,0.170143,58774.0,58772.0,0.0831]
[1725292017984,0.170143,58774.0,58772.0,0.0761]
[1725292018227,0.170143,58774.0,58772.0,0.0801]
[1725292018446,0.36695536,58776.0,58772.0,0.0801]
[1725292018447,0.02667736,58776.0,58772.0,0.0801]
[1725292018681,0.02667736,58776.0,58772.0,0.0781]
[1725292018920,0.170141,58775.0,58772.0,0.0831]
[1725292019387,0.170144,58774.0,58772.0,0.0831]
[1725292019608,0.02667736,58776.0,58772.0,0.0831]
[1725292019838,0.36695636,58776.0,58772.0,0.0831]
[1725292020338,0.170143,58774.0,58772.0,0.0831]
[1725292020799,0.170143,58774.0,58772.0,0.0761]
[1725292021020,0.170143,58774.0,58772.0,0.0791]
[1725292021289,0.36695636,58776.0,58775.0,0.51042]
[1725292021290,0.02667736,58776.0,58775.0,0.51042]
[1725292021515,0.02667736,58776.0,58775.0,0.53342]
[1725292021752,0.170117,58783.0,58778.0,0.170129]
[1725292022004,0.340211,58788.0,58779.0,0.477954]
[1725292022256,0.0752,58798.0,58784.0,0.170111]
[1725292022257,0.1701,58789.0,58784.0,0.170111]
[1725292022996,0.0643,58796.0,58779.0,0.500955]
[1725292023237,0.170126,58780.0,58776.0,0.04942992]
[1725292023475,0.510365,58782.0,58776.0,0.04942992]
[1725292023721,0.340243,58782.0,58777.0,0.01174707]
[1725292024046,0.340243,58782.0,58775.0,0.1503]
[1725292024305,0.170126,58780.0,58778.0,0.01174266]
[1725292024557,0.170126,58780.0,58776.0,0.170136]
[1725292024804,0.170126,58780.0,58779.0,0.01173824]
[1725292025054,0.170123,58781.0,58777.0,0.170133]
[1725292025301,0.170125,58780.0,58779.0,0.01173824]
[1725292025550,0.170125,58780.0,58778.0,0.01174266]
[1725292025783,0.170125,58780.0,58778.0,0.004]
[1725292026026,0.170125,58780.0,58779.0,0.01173824]
[1725292026496,0.170125,58780.0,58777.0,0.173133]
[1725292026720,0.170125,58780.0,58779.0,0.01173824]
[1725292026953,0.170125,58780.0,58777.0,0.173133]
[1725292027183,0.170125,58780.0,58779.0,0.01173824]
[1725292027435,0.170125,58780.0,58777.0,0.173133]
[1725292027726,0.170125,58780.0,58779.0,0.01173824]
[1725292027963,0.170123,58781.0,58778.0,0.01674266]
[1725292028177,0.170123,58781.0,58779.0,0.01173824]
[1725292028457,0.510376,58780.0,58779.0,0.01173824]
[1725292028734,0.510376,58780.0,58779.0,0.01573824]
[1725292029027,0.17013,58779.0,58777.0,0.001]
[1725292029265,0.170131,58778.0,58775.0,0.315439]
[1725292029727,0.170129,58779.0,58775.0,0.315439]
[1725292031242,0.340232,58784.0,58776.0,0.340272]
[1725292031378,0.340232,58784.0,58777.0,0.172134]
[1725292031594,0.340243,58782.0,58777.0,0.002]
[1725292031817,0.170126,58780.0,58776.0,0.170137]
[1725292032151,0.510365,58782.0,58777.0,0.170134]
[1725292032337,0.170125,58781.0,58776.0,0.170137]
[1725292032549,0.340232,58784.0,58775.0,0.1463]
[1725292032773,0.170125,58781.0,58777.0,0.001]
[1725292033115,0.170127,58780.0,58777.0,0.001]
[1725292033315,0.170127,58780.0,58777.0,0.171134]
[1725292033714,0.170131,58778.0,58777.0,0.001]
[1725292033926,0.340263,58778.0,58770.0,0.1100022]
[1725292034131,0.170149,58772.0,58770.0,0.1100022]
[1725292034356,0.17015,58772.0,58770.0,0.1100022]
[1725292034552,0.340289,58774.0,58770.0,0.061]
[1725292034553,0.340288,58774.0,58770.0,0.061]
[1725292034758,0.170146,58773.0,58770.0,0.061]
[1725292035366,0.170146,58773.0,58767.0,0.817223]
[1725292035367,0.170166,58766.0,58765.0,0.3315]
[1725292035634,0.0638,58779.0,58760.0,0.1121831]
[1725292035635,0.0765,58773.0,58760.0,0.1121831]
[1725292035844,0.17018,58761.0,58760.0,0.1121831]
[1725292036264,0.510541,58761.0,58760.0,0.0624]
[1725292036904,0.17018,58761.0,58760.0,0.0624]
[1725292037115,0.510541,58761.0,58760.0,0.0624]
[1725292037952,0.510541,58761.0,58760.0,0.0764]
[1725292038552,0.510541,58761.0,58760.0,0.08431453]
[1725292039345,0.510541,58761.0,58760.0,0.09631453]
[1725292039888,0.17018,58761.0,58760.0,0.09631453]
[1725292040667,0.510541,58761.0,58760.0,0.09631453]
[1725292041098,0.510541,58761.0,58760.0,0.03391453]
[1725292041519,1.255363,58761.0,58760.0,0.03391453]
[1725292041849,1.595724,58761.0,58760.0,0.026]
[1725292042484,1.671724,58761.0,58760.0,0.014]
[1725292043091,1.331363,58761.0,58760.0,0.014]
[1725292043596,0.170216,58749.0,58745.0,0.170225]
[1725292043876,0.170216,58749.0,58748.0,0.50540786]
[1725292044169,0.170216,58749.0,58745.0,0.170225]
[1725292044801,0.34041,58753.0,58745.0,0.170225]
[1725292045009,0.34041,58753.0,58743.0,0.45291397]
[1725292045010,0.17021,58751.0,58747.0,0.17022]
[1725292045217,0.170194,58757.0,58749.0,0.1437]
[1725292045425,0.0645,58767.0,58755.0,0.170197]
[1725292045426,0.340362,58761.0,58755.0,0.170197]
[1725292045667,0.340356,58762.0,58752.0,0.340409]
[1725292045668,0.17019,58758.0,58752.0,0.340409]
[1725292045870,0.17019,58758.0,58754.0,0.170199]
[1725292046485,0.340367,58760.0,58755.0,0.170197]
[1725292046730,0.340367,58760.0,58751.0,0.19375266]
[1725292046731,0.170181,58761.0,58757.0,0.170192]
[1725292046931,0.170185,58760.0,58754.0,0.340401]
[1725292047134,0.340359,58762.0,58754.0,0.170198]
[1725292047345,0.17019,58758.0,58754.0,0.170198]
[1725292048308,0.170205,58753.0,58750.0,0.023]
[1725292048518,0.1702,58755.0,58754.0,0.001]
[1725292048733,0.510596,58755.0,58754.0,0.001]
[1725292048945,0.170202,58754.0,58750.0,0.023]
[1725292049152,0.170204,58753.0,58750.0,0.023]
[1725292050188,0.170208,58752.0,58749.0,0.1437]
[1725292050398,0.34038,58758.0,58749.0,0.1437]
[1725292050656,0.34038,58758.0,58753.0,0.170202]
[1725292050657,0.170191,58758.0,58753.0,0.170202]
[1725292050872,0.170192,58757.0,58753.0,0.170202]
[1725292051286,0.170192,58757.0,58754.0,0.170201]
[1725292051511,0.340365,58761.0,58755.0,0.170196]
[1725292051720,0.170181,58761.0,58754.0,0.340399]
[1725292051933,0.170187,58759.0,58756.0,0.170194]
[1725292052163,0.170187,58759.0,58754.0,0.340399]
[1725292052786,0.170184,58760.0,58756.0,0.170194]
[1725292053209,0.170187,58759.0,58756.0,0.170194]
[1725292053573,0.340361,58761.0,58757.0,0.00862568]
[1725292053574,0.170183,58760.0,58757.0,0.00862568]
[1725292054121,0.17118,58761.0,58757.0,0.17881568]
[1725292054383,0.340354,58763.0,58757.0,0.17881568]
[1725292054384,0.170184,58760.0,58757.0,0.00862568]
[1725292054791,0.340344,58764.0,58757.0,0.01262568]
[1725292054998,0.0645,58767.0,58757.0,0.00862568]
[1725292055239,0.0645,58767.0,58754.0,0.19375266]
[1725292055240,0.170175,58763.0,58759.0,0.170185]
[1725292055446,0.170178,58762.0,58759.0,0.170185]
[1725292055720,0.170178,58762.0,58760.0,0.0086133]
[1725292056035,0.170178,58762.0,58759.0,0.170185]
[1725292056248,0.340359,58762.0,58761.0,0.00861035]
[1725292056456,0.17018,58761.0,58760.0,0.0086133]
[1725292056659,0.17018,58761.0,58757.0,0.173191]
[1725292056863,0.170181,58761.0,58760.0,0.0086133]
[1725292057087,0.170185,58760.0,58756.0,0.170194]
[1725292057293,0.170185,58760.0,58759.0,0.002]
[1725292057521,0.170179,58762.0,58758.0,0.170188]
[1725292057731,0.170184,58760.0,58757.0,0.170191]
[1725292057952,0.170184,58760.0,58757.0,0.171191]
[1725292058159,0.340356,58762.0,58757.0,0.170191]
[1725292058368,0.170184,58760.0,58756.0,0.005]
[1725292058587,0.340362,58761.0,58756.0,0.175195]
[1725292058588,0.170187,58759.0,58756.0,0.175195]
[1725292058809,0.340346,58764.0,58756.0,0.005]
[1725292058810,0.170192,58757.0,58756.0,0.005]
[1725292059463,0.510576,58757.0,58756.0,0.005]
[1725292059682,0.1702,58755.0,58751.0,0.170209]
[1725292059895,0.170209,58751.0,58750.0,0.04968126]
[1725292060084,0.170209,58751.0,58746.0,0.232821]
[1725292060085,0.170212,58750.0,58746.0,0.232821]
[1725292060304,0.170212,58750.0,58747.0,0.17022]
[1725292061228,0.170212,58750.0,58746.0,0.0726]
[1725292061437,0.170212,58750.0,58747.0,0.17022]
[1725292061935,0.34042,58751.0,58746.0,0.0726]
[1725292062155,0.510663,58747.0,58746.0,0.01]
[1725292062373,1.191547,58747.0,58746.0,0.01]
[1725292063053,1.72574166,58747.0,58746.0,0.01]
[1725292063275,1.79144166,58747.0,58746.0,0.01]
[1725292063481,1.86714166,58747.0,58746.0,0.01]
[1725292063686,1.86714166,58747.0,58732.0,0.56740786]
[1725292063687,0.170262,58733.0,58732.0,0.56740786]
[1725292063908,0.170262,58733.0,58732.0,0.61730438]
[1725292064112,0.170262,58733.0,58732.0,0.07069579]
[1725292064332,0.170262,58733.0,58732.0,0.00869579]
[1725292064333,0.85131,58733.0,58732.0,0.00869579]
[1725292064536,1.38558666,58733.0,58732.0,0.00869579]
[1725292064741,0.851322,58732.0,58731.0,0.0004]
[1725292064952,1.191851,58732.0,58731.0,0.0004]
[1725292065611,1.25326831,58732.0,58731.0,0.0004]
[1725292065827,1.21855023,58732.0,58731.0,0.0004]
[1725292066454,1.30145023,58732.0,58731.0,0.0014]
[1725292067067,1.30145023,58732.0,58731.0,0.0054]
[1725292067245,1.30145023,58732.0,58731.0,0.0004]
[1725292067706,1.30545023,58732.0,58731.0,0.0014]
[1725292067907,1.30145023,58732.0,58731.0,0.0004]
[1725292068369,1.30545023,58732.0,58731.0,0.0014]
[1725292069644,1.30145023,58732.0,58731.0,0.0004]
[1725292069864,0.87802123,58732.0,58731.0,0.0004]
[1725292070081,0.88102123,58732.0,58731.0,0.0024]
[1725292070295,0.87802123,58732.0,58731.0,0.0014]
[1725292070472,0.88102123,58732.0,58731.0,0.0004]
[1725292071491,0.854322,58732.0,58731.0,0.0004]
[1725292072124,0.854322,58732.0,58731.0,0.00920241]
[1725292072330,0.854322,58732.0,58731.0,0.0004]
[1725292072666,0.854322,58732.0,58731.0,0.00919867]
[1725292072871,0.854322,58732.0,58731.0,0.0004]
[1725292072872,0.003,58732.0,58731.0,0.0004]
[1725292073055,0.003,58732.0,58731.0,0.170667]
[1725292073281,0.003,58732.0,58731.0,1.34037067]
[1725292073503,0.003,58732.0,58731.0,1.36337067]
[1725292074219,0.0648,58749.0,58731.0,0.17149867]
[1725292074425,0.170234,58743.0,58739.0,0.170242]
[1725292074624,0.170234,58743.0,58737.0,0.340495]
[1725292074625,0.170236,58742.0,58738.0,0.170247]
[1725292074828,0.1969267,58743.0,58740.0,0.00875627]
[1725292075027,0.170238,58742.0,58739.0,0.00875922]
[1725292075239,0.170238,58742.0,58737.0,0.340495]
[1725292075240,0.170238,58742.0,58741.0,0.00875333]
[1725292075440,0.170238,58742.0,58738.0,0.170245]
[1725292075641,0.170238,58742.0,58741.0,0.00875333]
[1725292075868,0.170238,58742.0,58738.0,0.170245]
[1725292076069,0.170238,58742.0,58741.0,0.00874245]
[1725292076266,0.170238,58742.0,58738.0,0.170245]
[1725292076479,0.851177,58742.0,58741.0,0.00874245]
[1725292076703,0.851177,58742.0,58731.0,0.18906008]
[1725292076704,0.510793,58732.0,58731.0,0.06376008]
[1725292076875,0.851322,58732.0,58731.0,0.06376008]
[1725292077089,0.851322,58732.0,58731.0,0.0004]
[1725292077609,1.191851,58732.0,58731.0,0.0004]
[1725292077983,1.191851,58732.0,58731.0,0.0124]
[1725292078369,1.191851,58732.0,58731.0,0.0004]
[1725292078775,1.23736947,58732.0,58731.0,0.0004]
[1725292079202,1.23736947,58732.0,58731.0,0.0084]
[1725292079794,1.23736947,58732.0,58731.0,0.0004]
[1725292080154,1.23736947,58732.0,58731.0,0.0064]
[1725292080362,1.3440832,58732.0,58731.0,0.0064]
[1725292080572,1.3440832,58732.0,58731.0,0.0154]
[1725292080773,1.3440832,58732.0,58731.0,0.0094]
[1725292081037,1.3440832,58732.0,58731.0,0.0014]
[1725292081234,1.39160167,58732.0,58731.0,0.0014]
[1725292081440,1.3460832,58732.0,58731.0,0.0014]
[1725292081857,1.3480832,58732.0,58731.0,0.0014]
[1725292082068,1.191851,58732.0,58731.0,0.0014]
[1725292082520,1.193851,58732.0,58731.0,0.0004]
[1725292082736,1.193851,58732.0,58731.0,0.0014]
[1725292083147,0.853322,58732.0,58731.0,0.0014]
[1725292083844,0.851322,58732.0,58731.0,0.0004]
[1725292084056,1.2711065,58732.0,58731.0,0.0004]
[1725292084264,1.7541355,58732.0,58731.0,0.0004]
[1725292084477,1.7511355,58732.0,58731.0,0.0004]
[1725292084725,1.7541355,58732.0,58731.0,0.0004]
[1725292084939,0.170311,58716.0,58712.0,0.41637426]
[1725292085163,0.170311,58716.0,58713.0,0.1]
[1725292085394,0.19375266,58729.0,58713.0,0.008825]
[1725292085395,0.170314,58715.0,58713.0,0.008825]
[1725292085632,0.170314,58715.0,58711.0,0.170724]
[1725292085633,0.170314,58715.0,58712.0,0.1]
[1725292085876,0.170314,58715.0,58714.0,0.00882205]
[1725292086139,0.510951,58714.0,58713.0,0.008825]
[1725292086377,0.510951,58714.0,58711.0,0.0004]
[1725292086378,0.510967,58712.0,58711.0,0.0004]
[1725292086613,0.851612,58712.0,58711.0,0.0004]
[1725292087088,0.510967,58712.0,58711.0,0.0004]
[1725292087853,0.001,58715.0,58711.0,0.314425]
[1725292088086,0.171315,58715.0,58711.0,0.0004]
[1725292088335,0.851612,58712.0,58711.0,0.0004]